fUSD/lending_fUSD_20240125
["ID","MTS","AMOUNT","RATE_DAILY","PERIOD"]
[312746783,1706191908537,-500.0,0.00059726,120]
[312746784,1706191908546,-500.0,0.00059726,120]
[312746785,1706191908557,-500.0,0.00059726,120]
[312746786,1706191908566,-863.91,0.00059726,120]
[312746787,1706191908577,-500.0,0.00059726,120]
[312746788,1706191908587,-500.0,0.00059726,120]
[312746789,1706191908597,-500.0,0.00059726,120]
[312746790,1706191908606,-500.0,0.00059726,120]
[312746791,1706191908616,-264.19,0.00059726,120]
[312746792,1706191908625,-500.0,0.00059726,120]
[312746793,1706191908634,-500.0,0.00059726,120]
[312746794,1706191908644,-525.88,0.00059726,120]
[312746795,1706191908654,-500.0,0.00059726,120]
[312746796,1706191908663,-1232.05,0.00059726,120]
[312746797,1706191908672,-1625.22,0.00059726,5]
[312746798,1706191908682,-500.0,0.00059726,120]
[312746799,1706191908691,-2095.53,0.00059726,5]
[312746800,1706191908701,-500.0,0.00059726,120]
[312746801,1706191908710,-500.0,0.00059726,120]
[312746802,1706191908720,-500.0,0.00059726,120]
[312746803,1706191908729,-500.0,0.00059726,120]
[312746804,1706191908739,-500.0,0.00059726,120]
[312746805,1706191908748,-500.0,0.00059726,120]
[312746806,1706191908758,-500.0,0.00059726,120]
[312746807,1706191908768,-500.0,0.00059726,120]
[312746808,1706191908777,-598.55,0.00059726,120]
[312746809,1706191908787,-500.0,0.00059726,120]
[312746810,1706191908796,-500.0,0.00059726,120]
[312746811,1706191908806,-498.68012002,0.00059726,120]
[312746812,1706191908816,-1218.8,0.00059726,120]
[312746813,1706191908826,-575.99636287,0.00059726,120]
[312746814,1706191908835,-500.0,0.00059726,120]
[312746815,1706191908844,-729.37,0.00059726,120]
[312746816,1706191908853,-1196.06,0.00059726,120]
[312746817,1706191908863,-500.0,0.00059726,120]
[312746818,1706191908872,-500.0,0.00059726,120]
[312746819,1706191908883,-500.0,0.00059726,120]
[312746820,1706191908892,-159.9062418,0.00059728,42]
[312746821,1706191908902,-150.0,0.00059728,42]
[312746822,1706191908911,-1254.06570801,0.000598,60]
[312746823,1706191908921,-150.00000165,0.00059848,120]
[312746824,1706191908931,-150.0,0.0005985,120]
[312746825,1706191908940,-150.0,0.0005985,120]
[312746826,1706191908950,-152.22002784,0.0005985,120]
[312746827,1706191908959,-151.41572837,0.0005985,120]
[312746828,1706191908968,-150.0,0.0005985,120]
[312746829,1706191908978,-153.10347597,0.0005985,120]
[312746830,1706191908988,-152.73336286,0.0005985,120]
[312746831,1706191908997,-157.53631418,0.0005985,120]
[312746832,1706191909007,-155.45187413,0.0005985,120]
[312746833,1706191909017,-150.0,0.0005985,120]
[312746834,1706191909027,-547.14423294,0.00059997,2]
[312746835,1706191909037,-50000.0,0.0006,40]
[312746836,1706191909047,-60000.0,0.0006,30]
[312746837,1706191909056,-30000.0,0.0006,7]
[312746838,1706191909066,-36000.0,0.0006,14]
[312746839,1706191909077,-1086.01971579,0.0006,120]
[312746840,1706191909087,-409330.35163955,0.0006,120]
[312746841,1706191909466,-90669.64836045,0.0006,120]
[312746842,1706191909483,-2795.72917723,0.0006,120]
[312746843,1706191909497,-574.52503205,0.0006,90]
[312746844,1706191909512,-233.46364172,0.0006,30]
[312746845,1706191909526,-1500.87959723,0.0006,120]
[312746846,1706191909543,-554.90127864,0.0006,7]
[312746847,1706191909559,-2882.0,0.0006,85]
[312746848,1706191909571,-2500.0,0.0006,120]
[312746849,1706191909580,-151.0,0.0006,120]
[312746850,1706191909589,-151.0,0.0006,2]
[312746851,1706191909598,-257.02963082,0.0006,120]
[312746852,1706191909607,-151.0,0.0006,7]
[312746853,1706191909616,-10860.0,0.0006,120]
[312746854,1706191909626,-157.24489835,0.0006,60]
[312746855,1706191909635,-1294.17,0.0006,120]
[312746856,1706191909645,-151.0,0.0006,120]
[312746857,1706191909654,-151.0,0.0006,120]
[312746858,1706191909662,-2000.0,0.0006,120]
[312746859,1706191909671,-2000.0,0.0006,120]
[312746860,1706191909680,-2000.0,0.0006,120]
[312746861,1706191909689,-2000.0,0.0006,120]
[312746862,1706191909698,-2000.0,0.0006,120]
[312746863,1706191909707,-168.0,0.0006,120]
[312746864,1706191909716,-2000.0,0.0006,120]
[312746865,1706191909725,-20623.05679605,0.0006,85]
[312746866,1706191909734,-151.0,0.0006,120]
[312746867,1706191909743,-151.0,0.0006,120]
[312746868,1706191909752,-151.0,0.0006,120]
[312746869,1706191909761,-190.800433,0.0006,120]
[312746870,1706191909770,-207.0,0.0006,60]
[312746871,1706191909779,-190.800433,0.0006,120]
[312746872,1706191909789,-6777.6583831,0.0006,120]
[312746873,1706191909801,-86118.76298296,0.0006,120]
[312746874,1706191909841,2000.0,0.00022998,2]
[312746875,1706191909872,-2000.0,0.00022998,2]
[312746876,1706191910179,-203.22538019,0.00022997,2]
[312746877,1706191910189,-2206.12615082,0.00022998,2]
[312746878,1706191911062,-1001.52992715,0.00022998,2]
[312746879,1706191911073,-500.0,0.00054794,120]
[312746880,1706191911083,-500.0,0.00055342,120]
[312746881,1706191911093,-500.0,0.00055342,120]
[312746882,1706191911104,-372.78255692,0.0005589,120]
[312746883,1706191911113,-500.0,0.0005589,120]
[312746884,1706191911123,-500.0,0.00056438,120]
[312746885,1706191911133,-500.0,0.00056438,120]
[312746886,1706191911142,-500.0,0.00056986,120]
[312746887,1706191911152,-500.0,0.00056986,120]
[312746888,1706191911161,-500.0,0.00057534,120]
[312746889,1706191911172,-500.0,0.00058082,120]
[312746890,1706191911181,-500.0,0.0005863,120]
[312746891,1706191911191,-500.0,0.0005863,120]
[312746892,1706191911201,-500.0,0.00059178,120]
[312746893,1706191911211,-500.0,0.00059178,120]
[312746894,1706191911220,-500.0,0.00059726,120]
[312746895,1706191911230,-500.0,0.00059726,120]
[312746896,1706191911240,-500.0,0.00059726,120]
[312746897,1706191911250,-1074.29022058,0.0006,120]
[312746898,1706191911262,-762.0414715,0.0006,120]
[312746899,1706191911274,-631.46799349,0.0006,120]
[312746900,1706191911288,-104757.73913404,0.0006,120]
[312746901,1706191911300,-2221.3872,0.0006,120]
[312746902,1706191911331,-28209.61887907,0.0006,120]
[312746903,1706191911344,-23700.36499131,0.0006,120]
[312746904,1706191911358,-12815.1128684,0.0006,120]
[312746905,1706191911370,-507.65898413,0.0006,120]
[312746906,1706191911424,-500.0,0.00057534,120]
[312746907,1706191911434,-500.0,0.00058082,120]
[312746908,1706191911443,-136920.92735726,0.0006,120]
[312746909,1706191911457,-95502.96953416,0.0006,120]
[312746910,1706191911467,-151.0,0.0006,120]
[312746911,1706191911477,-10700.3350002,0.0006,2]
[312746912,1706191911487,-203.0,0.0006,60]
[312746913,1706191911496,-5000.0,0.0006,30]
[312746914,1706191911505,-13305.4257549,0.000601,120]
[312746915,1706191911583,-412.5888739,0.00022997,2]
[312746916,1706191911593,-500.0,0.00054794,120]
[312746917,1706191911602,-500.0,0.00055342,120]
[312746918,1706191911611,-500.0,0.0005863,120]
[312746919,1706191911620,-500.0,0.00059178,120]
[312746920,1706191911629,-500.0,0.00059726,120]
[312746921,1706191911638,-200.0,0.00059987,99]
[312746922,1706191911647,-6887.4111261,0.000601,120]
[312746923,1706191911659,-3609.63733075,0.000601,120]
[312746924,1706191911670,-450.54146812,0.000601,120]
[312746925,1706191911681,-52239.96396954,0.000601,120]
[312746926,1706191911692,-724.18657563,0.000601,120]
[312746927,1706191911703,-1090.25048855,0.000601,120]
[312746928,1706191911715,-396.38676567,0.000601,120]
[312746929,1706191911726,-446.446,0.000601,120]
[312746930,1706191911737,-443.4506406,0.000601,120]
[312746931,1706191911748,-42721.4255099,0.000601,120]
[312746932,1706191911759,-748.63230573,0.000601,120]
[312746933,1706191911770,-288320.43596505,0.000601,120]
[312746934,1706191911781,-88615.80609946,0.000601,120]
[312746935,1706191911790,-200.0,0.0006011,120]
[312746936,1706191911799,-500000.0,0.000602,120]
[312746937,1706191911808,-151.0,0.000602,120]
[312746938,1706191911818,-200.0,0.00060247,120]
[312746939,1706191911828,-112756.8035614,0.0006025,120]
[312746940,1706191911839,-86783.00109472,0.0006025,120]
[312746941,1706191911855,-9774.01265881,0.0006025,120]
[312746942,1706191911867,-264004.59346037,0.0006025,120]
[312746943,1706191911879,-2454.66419559,0.0006025,120]
[312746944,1706191911891,-1232.43710953,0.0006025,120]
[312746945,1706191911902,-374.72962927,0.0006025,120]
[312746946,1706191911914,-293.80853246,0.0006025,120]
[312746947,1706191911925,-1228.53770147,0.0006025,120]
[312746948,1706191911936,-269.49706015,0.0006025,120]
[312746949,1706191911951,-328.32741597,0.00054794,2]
[312746950,1706191911962,-171.67258403,0.00054794,2]
[312746951,1706191911972,-373.33477543,0.0006025,120]
[312746952,1706191911995,-480.95,0.00022997,2]
[312746953,1706191912049,-2375.11275444,0.00022997,2]
[312746954,1706191912061,-1643.69198603,0.00022997,2]
[312746955,1706191913618,-222.97748487,0.00022997,2]
[312746956,1706191913627,-500.0,0.0005589,120]
[312746957,1706191913636,-20454.5802208,0.0006025,120]
[312746958,1706191913646,-236.916306,0.0006025,120]
[312746959,1706191913655,-236.916306,0.0006025,120]
[312746960,1706191913664,-151.60345275,0.0006025,2]
[312746961,1706191913675,-195.68510254,0.0006027,30]
[312746962,1706191913684,-500.0,0.00060273,120]
[312746963,1706191913694,-500.0,0.00060273,120]
[312746964,1706191913703,-500.0,0.00060273,120]
[312746965,1706191913712,-666.0,0.00060273,120]
[312746966,1706191913722,-500.0,0.00060273,120]
[312746967,1706191913731,-500.0,0.00060273,120]
[312746968,1706191913741,-539.84,0.00060273,120]
[312746969,1706191913750,-500.0,0.00060273,120]
[312746970,1706191913760,-500.0,0.00060273,120]
[312746971,1706191913770,-628.8,0.00060273,120]
[312746972,1706191913779,-500.0,0.00060273,120]
[312746973,1706191913788,-500.0,0.00060273,120]
[312746974,1706191913797,-582.28,0.00060273,120]
[312746975,1706191913806,-500.0,0.00060273,120]
[312746976,1706191913816,-500.0,0.00060273,120]
[312746977,1706191913826,-336.89295536,0.00060273,120]
[312746978,1706191913835,-500.0,0.00060273,120]
[312746979,1706191913844,-500.0,0.00060273,120]
[312746980,1706191913854,-500.0,0.00060273,120]
[312746981,1706191913864,-647.6664009,0.00060273,120]
[312746982,1706191913873,-500.0,0.00060273,120]
[312746983,1706191913882,-1450.48,0.00060273,2]
[312746984,1706191913891,-500.0,0.00060273,120]
[312746985,1706191913901,-500.0,0.00060273,120]
[312746986,1706191913910,-500.0,0.00060273,120]
[312746987,1706191913919,-529.3,0.00060273,120]
[312746988,1706191913930,-500.0,0.00060273,120]
[312746989,1706191913939,-500.0,0.00060273,120]
[312746990,1706191913949,-500.0,0.00060273,120]
[312746991,1706191913958,-500.0,0.00060273,120]
[312746992,1706191913967,-500.0,0.00060273,120]
[312746993,1706191913976,-500.0,0.00060273,120]
[312746994,1706191913985,-500.0,0.00060273,120]
[312746995,1706191913994,-781.4,0.00060273,120]
[312746996,1706191914003,-500.0,0.00060273,120]
[312746997,1706191914013,-500.0,0.00060273,120]
[312746998,1706191914023,-500.0,0.00060273,120]
[312746999,1706191914033,-500.0,0.00060273,120]
[312747000,1706191914043,-500.0,0.00060273,120]
[312747001,1706191914052,-205.68,0.00060273,120]
[312747002,1706191914062,-500.0,0.00060273,120]
[312747003,1706191914071,-500.0,0.00060273,120]
[312747004,1706191914082,-680.29,0.00060273,120]
[312747005,1706191914091,-1626.54,0.00060273,120]
[312747006,1706191914100,-500.0,0.00060273,120]
[312747007,1706191914110,-500.0,0.00060273,120]
[312747008,1706191914119,-500.0,0.00060273,120]
[312747009,1706191914128,-500.0,0.00060273,120]
[312747010,1706191914138,-863.91,0.00060273,120]
[312747011,1706191914147,-500.0,0.00060273,120]
[312747012,1706191914157,-500.0,0.00060273,120]
[312747013,1706191914166,-525.88,0.00060273,120]
[312747014,1706191914175,-500.0,0.00060273,120]
[312747015,1706191914185,-1232.05,0.00060273,120]
[312747016,1706191914194,-1625.22,0.00060273,5]
[312747017,1706191914204,-2095.53,0.00060273,5]
[312747018,1706191914214,-500.0,0.00060273,120]
[312747019,1706191914224,-500.0,0.00060273,120]
[312747020,1706191914233,-500.0,0.00060273,120]
[312747021,1706191914243,-598.55,0.00060273,120]
[312747022,1706191914253,-500.0,0.00060273,120]
[312747023,1706191914262,-500.0,0.00060273,120]
[312747024,1706191914272,-1218.8,0.00060273,120]
[312747025,1706191914282,-729.37,0.00060273,120]
[312747026,1706191914400,-1196.06,0.00060273,120]
[312747027,1706191914409,-500.0,0.00060273,120]
[312747028,1706191914419,-500.0,0.00060273,120]
[312747029,1706191914430,-500.0,0.00060273,120]
[312747030,1706191914439,-500.0,0.00060273,120]
[312747031,1706191914449,-500.0,0.00060273,120]
[312747032,1706191914458,-537.12,0.00060273,120]
[312747033,1706191914468,-2852.78,0.00060274,120]
[312747034,1706191914477,-1645.31,0.00060274,120]
[312747035,1706191914486,-150.0,0.00060274,30]
[312747036,1706191914495,-419.17,0.00060274,30]
[312747037,1706191914504,-150.0,0.00060274,30]
[312747038,1706191914513,-419.17,0.00060274,30]
[312747039,1706191914522,-150.0,0.00060274,30]
[312747040,1706191914531,-419.17,0.00060274,30]
[312747041,1706191914540,-419.17,0.00060274,30]
[312747042,1706191914550,-419.17,0.00060274,30]
[312747043,1706191914559,-150.0,0.00060274,30]
[312747044,1706191914568,-419.17,0.00060274,30]
[312747045,1706191914578,-150.0,0.00060274,30]
[312747046,1706191914586,-150.0,0.00060274,30]
[312747047,1706191914595,-419.17,0.00060274,30]
[312747048,1706191914605,-419.17,0.00060274,30]
[312747049,1706191914614,-419.17,0.00060274,30]
[312747050,1706191914623,-419.17,0.00060274,30]
[312747051,1706191914632,-419.17,0.00060274,30]
[312747052,1706191914641,-419.17,0.00060274,30]
[312747053,1706191914650,-419.17,0.00060274,30]
[312747054,1706191914659,-419.17,0.00060274,30]
[312747055,1706191914669,-419.17,0.00060274,30]
[312747056,1706191914678,-419.17,0.00060274,30]
[312747057,1706191914687,-419.17,0.00060274,30]
[312747058,1706191914696,-449.54,0.00060274,30]
[312747059,1706191914706,-164.11,0.00060274,120]
[312747060,1706191914715,-1055.15909996,0.000603,30]
[312747061,1706191914724,-161.22703681,0.000603,30]
[312747062,1706191914733,-3000.0,0.000603,30]
[312747063,1706191914742,-500.0,0.000603,30]
[312747064,1706191914751,-250.0,0.000603,30]
[312747065,1706191914760,-150.0,0.000603,2]
[312747066,1706191914769,-1691.243573,0.000603,120]
[312747067,1706191914778,-165.0,0.00060411,120]
[312747068,1706191914788,-1148.12044047,0.00060423,120]
[312747069,1706191914797,-500000.0,0.000605,120]
[312747070,1706191914806,-168.0,0.000605,120]
[312747071,1706191914815,-190.800433,0.000605,120]
[312747072,1706191914825,-190.800433,0.000605,120]
[312747073,1706191914834,-424194.44,0.000605,120]
[312747074,1706191914843,-151.0,0.000605,120]
[312747075,1706191914853,-500.0,0.00060545,120]
[312747076,1706191914861,-493.030376,0.00060545,120]
[312747077,1706191914871,-291.685831,0.00060545,120]
[312747078,1706191914880,-153.11542702,0.00060749,60]
[312747079,1706191914890,-3380.0,0.0006078,117]
[312747080,1706191914899,-165.02536135,0.00060781,2]
[312747081,1706191914909,-1148.12044047,0.00060796,120]
[312747082,1706191914918,-150.0,0.000608,120]
[312747083,1706191914928,-500.0,0.00060821,120]
[312747084,1706191914938,-539.84,0.00060821,120]
[312747085,1706191914948,-461.52034382,0.00060821,120]
[312747086,1706191914958,-539.7213381,0.00060821,120]
[312747087,1706191914967,-500.0,0.00060821,120]
[312747088,1706191914976,-500.0,0.00060821,120]
[312747089,1706191914986,-500.0,0.00060821,120]
[312747090,1706191914995,-500.0,0.00060821,120]
[312747091,1706191915004,-500.0,0.00060821,120]
[312747092,1706191915013,-500.0,0.00060821,120]
[312747093,1706191915023,-1450.48,0.00060821,2]
[312747094,1706191915033,-500.0,0.00060821,120]
[312747095,1706191915043,-500.0,0.00060821,120]
[312747096,1706191915052,-500.0,0.00060821,120]
[312747097,1706191915062,-500.0,0.00060821,120]
[312747098,1706191915071,-500.0,0.00060821,120]
[312747099,1706191915082,-500.0,0.00060821,120]
[312747100,1706191915091,-500.0,0.00060821,120]
[312747101,1706191915102,-781.4,0.00060821,120]
[312747102,1706191915111,-500.0,0.00060821,120]
[312747103,1706191915120,-500.0,0.00060821,120]
[312747104,1706191915129,-500.0,0.00060821,120]
[312747105,1706191915138,-194.9,0.00060821,120]
[312747106,1706191915147,-500.0,0.00060821,120]
[312747107,1706191915156,-500.0,0.00060821,120]
[312747108,1706191915166,-680.29,0.00060821,120]
[312747109,1706191915175,-1626.54,0.00060821,120]
[312747110,1706191915184,-500.0,0.00060821,120]
[312747111,1706191915193,-275.15,0.00060821,120]
[312747112,1706191915202,-500.0,0.00060821,120]
[312747113,1706191915211,-547.52,0.00060821,120]
[312747114,1706191915221,-863.91,0.00060821,120]
[312747115,1706191915231,-500.0,0.00060821,120]
[312747116,1706191915241,-639.26,0.00060821,120]
[312747117,1706191915250,-525.88,0.00060821,120]
[312747118,1706191915259,-500.0,0.00060821,120]
[312747119,1706191915268,-1232.05,0.00060821,120]
[312747120,1706191915278,-1625.22,0.00060821,5]
[312747121,1706191915288,-2095.53,0.00060821,5]
[312747122,1706191915297,-500.0,0.00060821,120]
[312747123,1706191915306,-645.04267313,0.00060821,120]
[312747124,1706191915315,-598.55,0.00060821,120]
[312747125,1706191915325,-600.36,0.00060821,120]
[312747126,1706191915334,-500.0,0.00060821,120]
[312747127,1706191915343,-1218.8,0.00060821,120]
[312747128,1706191915353,-729.37,0.00060821,120]
[312747129,1706191915363,-1196.06,0.00060821,120]
[312747130,1706191915372,-500.0,0.00060821,120]
[312747131,1706191915384,-500.0,0.00060821,120]
[312747132,1706191915395,-500.0,0.00060821,120]
[312747133,1706191915405,-500.0,0.00060821,120]
[312747134,1706191915415,-500.0,0.00060821,120]
[312747135,1706191915424,-500.0,0.0006097,60]
[312747136,1706191915433,-200.0,0.00060987,89]
[312747137,1706191915443,-200.0,0.00060987,61]
[312747138,1706191915475,-261040.36223044,0.00061,120]
[312747139,1706191915497,-200.0,0.00061,47]
[312747140,1706191915507,-155.0,0.00061,7]
[312747141,1706191915518,-2000.0,0.00061,30]
[312747142,1706191915527,-200.0,0.00061,30]
[312747143,1706191915536,-200.0,0.00061,30]
[312747144,1706191915546,-151.0,0.00061,120]
[312747145,1706191915555,-186.87452845,0.00061,120]
[312747146,1706191915564,-151.0,0.00061,120]
[312747147,1706191915573,-151.0,0.00061,120]
[312747148,1706191915584,-264.868046,0.00061,120]
[312747149,1706191915593,-500000.0,0.00061,120]
[312747150,1706191915602,-537.21835675,0.0006102,90]
[312747151,1706191915611,-500.0,0.0006102,90]
[312747152,1706191915621,-2000.0,0.000611,120]
[312747153,1706191915630,-200.0,0.00061123,120]
[312747154,1706191915639,-152.22697284,0.0006115,86]
[312747155,1706191915647,-150.0,0.0006118,120]
[312747156,1706191915656,-299697.88738067,0.0006125,120]
[312747157,1706191915670,-316.19458549,0.0006125,120]
[312747158,1706191915680,-680.07923669,0.0006125,120]
[312747159,1706191915691,-18240.40163292,0.0006125,120]
[312747160,1706191915702,-2277.75955266,0.0006125,120]
[312747161,1706191915713,-419.87653924,0.0006125,120]
[312747162,1706191915728,-1055.07825606,0.0006125,120]
[312747163,1706191915739,-948.4779212,0.0006125,120]
[312747164,1706191915947,-544.18,0.0003846,2]
[312747165,1706191915957,-1455.33200349,0.0003888,2]
[312747166,1706191915968,-3203.74504381,0.0003888,2]
[312747167,1706191915980,-1557.05539787,0.0003888,2]
[312747168,1706191915990,-544.18,0.00040723,2]
[312747169,1706191915999,-544.18,0.00042987,2]
[312747170,1706191916009,-544.18,0.00045251,2]
[312747171,1706191916018,-544.18,0.00047515,2]
[312747172,1706191916027,-544.18,0.00049779,2]
[312747173,1706191916037,-544.18,0.00052043,2]
[312747174,1706191916046,-544.18,0.00054307,2]
[312747175,1706191916055,-500.0,0.00054794,120]
[312747176,1706191916065,-500.0,0.00054794,120]
[312747177,1706191916074,-500.0,0.00054794,120]
[312747178,1706191916085,-500.0,0.00055342,2]
[312747179,1706191916094,-500.0,0.00055342,120]
[312747180,1706191916103,-500.0,0.00055342,120]
[312747181,1706191916113,-325.4356623,0.00055342,120]
[312747182,1706191916125,-174.5643377,0.00055342,120]
[312747183,1706191916135,-500.0,0.0005589,2]
[312747184,1706191916151,-500.0,0.0005589,120]
[312747185,1706191916172,-500.0,0.0005589,120]
[312747186,1706191916182,-500.0,0.00056438,120]
[312747187,1706191916191,-500.0,0.00056438,2]
[312747188,1706191916201,-500.0,0.00056438,120]
[312747189,1706191916210,-500.0,0.00056438,120]
[312747190,1706191916220,-500.0,0.00056986,120]
[312747191,1706191916229,-500.0,0.00056986,2]
[312747192,1706191916239,-500.0,0.00056986,120]
[312747193,1706191916249,-500.0,0.00056986,120]
[312747194,1706191916258,-500.0,0.00057534,120]
[312747195,1706191916268,-500.0,0.00057534,2]
[312747196,1706191916278,-500.0,0.00057534,120]
[312747197,1706191916288,-500.0,0.00058082,120]
[312747198,1706191916298,-500.0,0.00058082,2]
[312747199,1706191916308,-500.0,0.0005863,120]
[312747200,1706191916317,-500.0,0.00059178,120]
[312747201,1706191916327,-500.0,0.00059726,120]
[312747202,1706191916336,-103734.01732761,0.0006125,120]
[312747203,1706191916349,-2882.23338395,0.0006125,120]
[312747204,1706191916361,-1261.180829,0.0006125,120]
[312747205,1706191916377,-500.0,0.00057534,120]
[312747206,1706191916391,-6988.76465014,0.0006125,120]
[312747207,1706191916408,-3600.29923112,0.0006125,120]
[312747208,1706191916419,-773.56478229,0.0006125,120]
[312747209,1706191916447,-500.0,0.00058082,120]
[312747210,1706191916456,-31.911,0.0006125,120]
[312747211,1706191916470,-572.05675015,0.0006125,120]
[312747212,1706191916652,-4089.48759241,0.0006125,120]
[312747213,1706191916664,-1014.8698506,0.0006125,120]
[312747214,1706191916675,-600.23811888,0.0006125,120]
[312747215,1706191918971,-393.999427,0.00022996,2]
[312747216,1706191918993,-300.9098558,0.00022996,2]
[312747217,1706191919015,-246.97993419,0.00022996,2]
[312747218,1706191919841,276.21851899,0.00022999,2]
[312747219,1706191919872,574.60329388,0.00022999,2]
[312747220,1706191927281,207.28897014,0.00022999,2]
[312747221,1706191927304,1803.38466473,0.00022999,2]
[312747222,1706191927332,196.61533527,0.00022999,2]
[312747223,1706191927356,1814.0582996,0.00022999,2]
[312747224,1706191927386,185.9417004,0.00022999,2]
[312747225,1706191927411,1824.73193447,0.00022999,2]
[312747226,1706191927440,175.26806553,0.00022999,2]
[312747227,1706191927463,1835.40556934,0.00022999,2]
[312747228,1706191927497,164.59443066,0.00022999,2]
[312747229,1706191927519,1846.07920421,0.00022999,2]
[312747230,1706191927547,153.92079579,0.00022999,2]
[312747231,1706191927567,1856.75283908,0.00022999,2]
[312747232,1706191927595,143.24716092,0.00022999,2]
[312747233,1706191927618,1867.42647395,0.00022999,2]
[312747234,1706191927645,132.57352605,0.00022999,2]
[312747235,1706191927666,1878.10010882,0.00022999,2]
[312747236,1706191927694,121.89989118,0.00022999,2]
[312747237,1706191927716,1888.77374369,0.00022999,2]
[312747238,1706191927744,111.22625631,0.00022999,2]
[312747239,1706191927765,1899.44737856,0.00022999,2]
[312747240,1706191927792,100.55262144,0.00022999,2]
[312747241,1706191927815,1910.12101343,0.00022999,2]
[312747242,1706191927846,89.87898657,0.00022999,2]
[312747243,1706191927868,1920.7946483,0.00022999,2]
[312747244,1706191927897,79.2053517,0.00022999,2]
[312747245,1706191927919,1931.46828317,0.00022999,2]
[312747246,1706191927948,68.53171683,0.00022999,2]
[312747259,1706192136331,180.25,0.00016712,2]
[312747282,1706192525506,300.0,0.00022999,2]
[312747283,1706192525760,300.0,0.00022999,2]
[312747284,1706192526018,300.0,0.00022999,2]
[312747285,1706192526292,300.0,0.00022999,2]
[312747286,1706192526548,300.0,0.00022999,2]
[312747287,1706192526806,167.92454049,0.00022999,2]
[312747307,1706192958119,-2605.00254131,0.00024999,2]
[312747308,1706192958139,-1000.0,0.00024999,2]
[312747309,1706192958166,-450.0,0.00025,3]
[312747310,1706192958185,-3333.83089488,0.00025571,2]
[312747311,1706192958205,-3194.72146129,0.00025571,2]
[312747312,1706192958226,-19027.04764442,0.00025572,2]
[312747313,1706192958246,-19156.27488788,0.00025573,2]
[312747314,1706192958265,-207.75689818,0.00025579,2]
[312747315,1706192958284,-2658.1699,0.00025581,14]
[312747316,1706192958304,-150.0,0.00025674,2]
[312747317,1706192958324,-153.3136744,0.00025685,2]
[312747318,1706192958343,-13125.98759838,0.00025888,2]
[312747319,1706192958362,-2513.37268186,0.00025898,2]
[312747320,1706192958381,-2888.0,0.000259,2]
[312747321,1706192958400,-288.0,0.000259,2]
[312747322,1706192958420,-500.0,0.00026,2]
[312747323,1706192958439,-6783.95,0.00026,2]
[312747324,1706192958459,-500.0,0.00027,3]
[312747325,1706192958479,-326.5,0.00027758,2]
[312747326,1706192958499,-597.18,0.00029374,2]
[312747327,1706192958522,-199.55,0.00029393,2]
[312747328,1706192958541,-208.59,0.00029397,2]
[312747329,1706192958559,-150.0,0.0002953,2]
[312747330,1706192958578,-203.2,0.00029555,2]
[312747331,1706192958596,-7103.47,0.00029658,2]
[312747332,1706192958616,-548.43,0.00029714,2]
[312747333,1706192958634,-200.0,0.00029749,2]
[312747334,1706192958653,-250.0,0.00029749,2]
[312747335,1706192958672,-500.0,0.00029821,2]